{"text_format":"3","workbook":"xlsx","n_sheets":2,"sheets":["JAK POUŽÍVAT TENTO SEŠIT","KLASIFIKAČNÍ SEŠIT"],"not_rendered":{"defined_names":5},"read":"whole","date_system":"1900"}

{"sheet":"JAK POUŽÍVAT TENTO SEŠIT","index":0,"n_rows":10,"n_cols":2,"rows_kept":10}
[null,"POKYNY"]
[null,"Pomocí listu KLASIFIKAČNÍ SEŠIT můžete vypočítat hodnocení (známky), kde se za každé zadání dá získat nastavený počet bodů. "]
[null,"Pokyny: Nezapomeňte si ukládat záložní kopie hodnocení."]
[null,"1. Vyplňte název školy, informace o předmětu, jména studentů a ID studentů (volitelné).   "]
[null,"2. Upravte tabulku hodnocení a bodového průměru, aby odpovídala obvyklému systému hodnocení, který používáte."]
[null,"3. Vyplňte názvy zadání nebo testů, počínaje buňkou G7, spolu s procentem, které představují (např. Celková a 50 %). "]
[null,"4. Vyplňte výsledky pro každého studenta u každého zadání nebo testu. Sloupce Výsledek, Písmenná známka a Bodový průměr se počítají automaticky, ale pokud chcete, můžete je přepsat. Způsob, jakým se počítá známkové hodnocení, průměr a celková známka, znamená, že jsou neúplné, dokud nejsou zadané všechny výsledky."]
[null,"V nabídce Rozložení stránky použijte příkaz Oblast tisku, pokud chcete změnit, co se vytiskne."]
[null,"Výsledek, Písmenná známka a Bodový průměr nejsou platné, dokud nejsou 100% kompletní testy a zadání. "]
[null,"Zadejte jednotlivá zadání nebo testy a jejich procento z celkové známky v buňkách G7 až W8."]

{"sheet":"KLASIFIKAČNÍ SEŠIT","index":1,"n_rows":20,"n_cols":23,"rows_kept":20,"merged":[[5,1,5,5],[6,1,6,3],[6,4,6,5],[7,1,8,3],[7,4,7,5],[8,4,8,5],[15,1,15,5],[16,1,16,2],[17,1,17,2],[18,1,18,2],[19,1,19,2]]}
[null,"NÁZEV VAŠÍ ŠKOLY"]
[]
[{"$nulls":6},"Výsledek",{"v":0,"d":"0%"},{"v":0.6,"d":"60%"},{"v":0.63,"d":"63%"},{"v":0.67,"d":"67%"},{"v":0.7,"d":"70%"},{"v":0.73,"d":"73%"},{"v":0.77,"d":"77%"},{"v":0.8,"d":"80%"},{"v":0.83,"d":"83%"},{"v":0.87,"d":"87%"},{"v":0.9,"d":"90%"},{"v":0.93,"d":"93%"},{"v":0.97,"d":"97%"}]
[{"$nulls":6},"Písmenná známka","F","D-","D","D+","C-","C","C+","B-","B","B+","A-","A","A+"]
[{"$nulls":6},"Bodový průměr",0,0.67,1,1.33,1.67,2,2.33,2.67,3,3.33,3.67,4,4]
[null,"Jméno učitele"]
[null,"Předmět/projekt",null,null,"Název zadání nebo testu"]
[null,"Rok/semestr/čtvrtletí",null,null,"Procento (celkový součet má být 100 %)"]
[{"$nulls":4},{"$f":"\"Celkové procento: \"&SUM(G8:W8)*100&\"%\"","v":"Celkové procento: 0%"}]
[null,"Jméno studenta","ID studenta","Výsledek","Písmenná známka","Bodový průměr","Sloupec6","Sloupec7","Sloupec8","Sloupec9","Sloupec10","Sloupec11","Sloupec12","Sloupec13","Sloupec14","Sloupec15","Sloupec16","Sloupec17","Sloupec18","Sloupec19","Sloupec20","Sloupec21","Sloupec22"]
[{"$nulls":3},{"$f":"(IF(SUM(Známky[[#This Row],[Sloupec6]:[Sloupec22]]),ROUND(SUMPRODUCT($G$8:$W$8,Známky[[#This Row],[Sloupec6]:[Sloupec22]]),2),\"\"))","v":""},{"$f":"IF(Známky[[#This Row],[Výsledek]]<>\"\",HLOOKUP(Známky[[#This Row],[Výsledek]],TabulkaZnámky,2),\"\")","v":""},{"$f":"IF(Známky[[#This Row],[Výsledek]]<>\"\",HLOOKUP(Známky[[#This Row],[Výsledek]],TabulkaZnámky,3),\"\")","v":""}]
[{"$nulls":3},{"$f":"(IF(SUM(Známky[[#This Row],[Sloupec6]:[Sloupec22]]),ROUND(SUMPRODUCT($G$8:$W$8,Známky[[#This Row],[Sloupec6]:[Sloupec22]]),2),\"\"))","v":""},{"$f":"IF(Známky[[#This Row],[Výsledek]]<>\"\",HLOOKUP(Známky[[#This Row],[Výsledek]],TabulkaZnámky,2),\"\")","v":""},{"$f":"IF(Známky[[#This Row],[Výsledek]]<>\"\",HLOOKUP(Známky[[#This Row],[Výsledek]],TabulkaZnámky,3),\"\")","v":""}]
[{"$nulls":3},{"$f":"(IF(SUM(Známky[[#This Row],[Sloupec6]:[Sloupec22]]),ROUND(SUMPRODUCT($G$8:$W$8,Známky[[#This Row],[Sloupec6]:[Sloupec22]]),2),\"\"))","v":""},{"$f":"IF(Známky[[#This Row],[Výsledek]]<>\"\",HLOOKUP(Známky[[#This Row],[Výsledek]],TabulkaZnámky,2),\"\")","v":""},{"$f":"IF(Známky[[#This Row],[Výsledek]]<>\"\",HLOOKUP(Známky[[#This Row],[Výsledek]],TabulkaZnámky,3),\"\")","v":""}]
[{"$nulls":3},{"$f":"(IF(SUM(Známky[[#This Row],[Sloupec6]:[Sloupec22]]),ROUND(SUMPRODUCT($G$8:$W$8,Známky[[#This Row],[Sloupec6]:[Sloupec22]]),2),\"\"))","v":""},{"$f":"IF(Známky[[#This Row],[Výsledek]]<>\"\",HLOOKUP(Známky[[#This Row],[Výsledek]],TabulkaZnámky,2),\"\")","v":""},{"$f":"IF(Známky[[#This Row],[Výsledek]]<>\"\",HLOOKUP(Známky[[#This Row],[Výsledek]],TabulkaZnámky,3),\"\")","v":""}]
[{"$nulls":3},{"$f":"(IF(SUM(Známky[[#This Row],[Sloupec6]:[Sloupec22]]),ROUND(SUMPRODUCT($G$8:$W$8,Známky[[#This Row],[Sloupec6]:[Sloupec22]]),2),\"\"))","v":""},{"$f":"IF(Známky[[#This Row],[Výsledek]]<>\"\",HLOOKUP(Známky[[#This Row],[Výsledek]],TabulkaZnámky,2),\"\")","v":""},{"$f":"IF(Známky[[#This Row],[Výsledek]]<>\"\",HLOOKUP(Známky[[#This Row],[Výsledek]],TabulkaZnámky,3),\"\")","v":""}]
[]
[null,"Shrnutí předmětu",null,"Výsledek","Písmenná známka","Bodový průměr","","","","","","","","","","",""]
[null," Průměr",null,{"$f":"IFERROR(AVERAGE(Známky[[#All],[Výsledek]]),0)","v":{"v":0,"d":"0.0%"}},{"$f":"IFERROR(HLOOKUP(D18,TabulkaZnámky,2),\"\")","v":"F"},{"$f":"IFERROR(AVERAGE(Známky[[#All],[Bodový průměr]]),0)","v":0},"","","","","","","","","","","","","","","","",""]
[null," Nejvyšší výsledek",null,{"$f":"IFERROR(MAX(Známky[[#All],[Výsledek]]),0)","v":{"v":0,"d":"0.0%"}},{"$f":"IFERROR(HLOOKUP(D19,TabulkaZnámky,2),\"\")","v":"F"},{"$f":"IFERROR(MAX(Známky[[#All],[Bodový průměr]]),0)","v":0},"","","","","","","","","","","","","","","","",""]
[null," Nejnižší výsledek",null,{"$f":"IFERROR(MIN(Známky[[#All],[Výsledek]]),0)","v":{"v":0,"d":"0.0%"}},{"$f":"IFERROR(HLOOKUP(D20,TabulkaZnámky,2),\"\")","v":"F"},{"$f":"IFERROR(MIN(Známky[[#All],[Bodový průměr]]),0)","v":0},"","","","","","","","","","","","","","","","",""]